Workbook

Sheet 主表
C1: 1.5 | D1: 1 | F1: 怪物倍率
A2: 等级 | B2: 等级强度 | C2: 功法被动 | D2: 功法放大（生命） | E2: 最终强度（防御系数） | F2: 生命 | G2: 防御 | H2: 攻击 | I2: 护盾
A3: 1 | B3: =升级!C2 -> 100 | C3: =C$1*$A3/300 -> 0.005 | D3: =D$1*$A3/300 -> 0.003333333333 | E3: =ROUND(B3*(1+C3),0) -> 101 | F3: =(1+C3)*(1+D3) -> 1.00835 | G3: =1+C3 -> 1.005 | H3: =G3 -> 1.005 | I3: 0
A4: 2 | B4: =升级!C3 -> 102 | C4: =C$1*$A4/300 -> 0.01 | D4: 0.006666666667 | E4: =ROUND(B4*(1+C4),0) -> 103 | F4: =(1+C4)*(1+D4)*B4/B$3 -> 1.037068 | G4: =(1+C4)*B4/B$3 -> 1.0302 | H4: =G4 -> 1.0302 | I4: 0
A5: 3 | B5: =升级!C4 -> 104 | C5: 0.015 | D5: 0.01 | E5: 106 | F5: =(1+C5)*(1+D5)*B5/B$3 -> 1.066156 | G5: =(1+C5)*B5/B$3 -> 1.0556 | H5: 1.0556 | I5: 0
A6: 4 | B6: =升级!C5 -> 106 | C6: 0.02 | D6: 0.01333333333 | E6: 108 | F6: 1.095616 | G6: 1.0812 | H6: 1.0812 | I6: 0
A7: 5 | B7: =升级!C6 -> 108 | C7: 0.025 | D7: 0.01666666667 | E7: 111 | F7: 1.12545 | G7: 1.107 | H7: 1.107 | I7: 0
A8: 6 | B8: =升级!C7 -> 110 | C8: 0.03 | D8: 0.02 | E8: 113 | F8: 1.15566 | G8: 1.133 | H8: 1.133 | I8: 0
A9: 7 | B9: =升级!C8 -> 112 | C9: 0.035 | D9: 0.02333333333 | E9: 116 | F9: 1.186248 | G9: 1.1592 | H9: 1.1592 | I9: 0
A10: 8 | B10: =升级!C9 -> 114 | C10: 0.04 | D10: 0.02666666667 | E10: 119 | F10: 1.217216 | G10: 1.1856 | H10: 1.1856 | I10: 0
A11: 9 | B11: =升级!C10 -> 116 | C11: 0.045 | D11: 0.03 | E11: 121 | F11: 1.248566 | G11: 1.2122 | H11: 1.2122 | I11: 0
A12: 10 | B12: =升级!C11 -> 122 | C12: 0.05 | D12: 0.03333333333 | E12: 128 | F12: 1.3237 | G12: 1.281 | H12: 1.281 | I12: 0
A13: 11 | B13: =升级!C12 -> 124 | C13: 0.055 | D13: 0.03666666667 | E13: 131 | F13: 1.356167333 | G13: 1.3082 | H13: 1.3082 | I13: 0
A14: 12 | B14: =升级!C13 -> 126 | C14: 0.06 | D14: 0.04 | E14: 134 | F14: 1.389024 | G14: 1.3356 | H14: 1.3356 | I14: 0
A15: 13 | B15: =升级!C14 -> 128 | C15: 0.065 | D15: 0.04333333333 | E15: 136 | F15: 1.422272 | G15: 1.3632 | H15: 1.3632 | I15: 0
A16: 14 | B16: =升级!C15 -> 130 | C16: 0.07 | D16: 0.04666666667 | E16: 139 | F16: 1.455913333 | G16: 1.391 | H16: 1.391 | I16: 0
A17: 15 | B17: =升级!C16 -> 132 | C17: 0.075 | D17: 0.05 | E17: 142 | F17: 1.48995 | G17: 1.419 | H17: 1.419 | I17: 0
A18: 16 | B18: =升级!C17 -> 134 | C18: 0.08 | D18: 0.05333333333 | E18: 145 | F18: 1.524384 | G18: 1.4472 | H18: 1.4472 | I18: 0
A19: 17 | B19: =升级!C18 -> 136 | C19: 0.085 | D19: 0.05666666667 | E19: 148 | F19: 1.559217333 | G19: 1.4756 | H19: 1.4756 | I19: 0
A20: 18 | B20: =升级!C19 -> 138 | C20: 0.09 | D20: 0.06 | E20: 150 | F20: 1.594452 | G20: 1.5042 | H20: 1.5042 | I20: 0
A21: 19 | B21: =升级!C20 -> 140 | C21: 0.095 | D21: 0.06333333333 | E21: 153 | F21: 1.63009 | G21: 1.533 | H21: 1.533 | I21: 0
A22: 20 | B22: =升级!C21 -> 150 | C22: 0.1 | D22: 0.06666666667 | E22: 165 | F22: 1.76 | G22: 1.65 | H22: 1.65 | I22: 0
A23: 21 | B23: =升级!C22 -> 152 | C23: 0.105 | D23: 0.07 | E23: 168 | F23: 1.797172 | G23: 1.6796 | H23: 1.6796 | I23: 0
A24: 22 | B24: =升级!C23 -> 154 | C24: 0.11 | D24: 0.07333333333 | E24: 171 | F24: 1.834756 | G24: 1.7094 | H24: 1.7094 | I24: 0
A25: 23 | B25: =升级!C24 -> 158 | C25: 0.115 | D25: 0.07666666667 | E25: 176 | F25: 1.896763667 | G25: 1.7617 | H25: 1.7617 | I25: 0
A26: 24 | B26: =升级!C25 -> 160 | C26: 0.12 | D26: 0.08 | E26: 179 | F26: 1.93536 | G26: 1.792 | H26: 1.792 | I26: 0
A27: 25 | B27: =升级!C26 -> 162 | C27: 0.125 | D27: 0.08333333333 | E27: 182 | F27: 1.974375 | G27: 1.8225 | H27: 1.8225 | I27: 0
A28: 26 | B28: =升级!C27 -> 166 | C28: 0.13 | D28: 0.08666666667 | E28: 188 | F28: 2.038369333 | G28: 1.8758 | H28: 1.8758 | I28: 0
A29: 27 | B29: =升级!C28 -> 168 | C29: 0.135 | D29: 0.09 | E29: 191 | F29: 2.078412 | G29: 1.9068 | H29: 1.9068 | I29: 0
A30: 28 | B30: =升级!C29 -> 170 | C30: 0.14 | D30: 0.09333333333 | E30: 194 | F30: 2.11888 | G30: 1.938 | H30: 1.938 | I30: 0
A31: 29 | B31: =升级!C30 -> 174 | C31: 0.145 | D31: 0.09666666667 | E31: 199 | F31: 2.184889 | G31: 1.9923 | H31: 1.9923 | I31: 0
A32: 30 | B32: =升级!C31 -> 196 | C32: 0.15 | D32: 0.1 | E32: 225 | F32: 2.4794 | G32: 2.254 | H32: 2.254 | I32: 0
A33: 31 | B33: =升级!C32 -> 200 | C33: 0.155 | D33: 0.1033333333 | E33: 231 | F33: 2.5487 | G33: 2.31 | H33: 2.31 | I33: 0
A34: 32 | B34: =升级!C33 -> 204 | C34: 0.16 | D34: 0.1066666667 | E34: 237 | F34: 2.618816 | G34: 2.3664 | H34: 2.3664 | I34: 0
A35: 33 | B35: =升级!C34 -> 206 | C35: 0.165 | D35: 0.11 | E35: 240 | F35: 2.663889 | G35: 2.3999 | H35: 2.3999 | I35: 0
A36: 34 | B36: =升级!C35 -> 210 | C36: 0.17 | D36: 0.1133333333 | E36: 246 | F36: 2.73546 | G36: 2.457 | H36: 2.457 | I36: 0
A37: 35 | B37: =升级!C36 -> 214 | C37: 0.175 | D37: 0.1166666667 | E37: 251 | F37: 2.807858333 | G37: 2.5145 | H37: 2.5145 | I37: 0
A38: 36 | B38: =升级!C37 -> 216 | C38: 0.18 | D38: 0.12 | E38: 255 | F38: 2.854656 | G38: 2.5488 | H38: 2.5488 | I38: 0
A39: 37 | B39: =升级!C38 -> 220 | C39: 0.185 | D39: 0.1233333333 | E39: 261 | F39: 2.92853 | G39: 2.607 | H39: 2.607 | I39: 0
A40: 38 | B40: =升级!C39 -> 224 | C40: 0.19 | D40: 0.1266666667 | E40: 267 | F40: 3.003242667 | G40: 2.6656 | H40: 2.6656 | I40: 0
A41: 39 | B41: =升级!C40 -> 228 | C41: 0.195 | D41: 0.13 | E41: 272 | F41: 3.078798 | G41: 2.7246 | H41: 2.7246 | I41: 0
A42: 40 | B42: =升级!C41 -> 242 | C42: 0.2 | D42: 0.1333333333 | E42: 290 | F42: 3.2912 | G42: 2.904 | H42: 2.904 | I42: 0
A43: 41 | B43: =升级!C42 -> 246 | C43: 0.205 | D43: 0.1366666667 | E43: 296 | F43: 3.369421 | G43: 2.9643 | H43: 2.9643 | I43: 0
A44: 42 | B44: =升级!C43 -> 250 | C44: 0.21 | D44: 0.14 | E44: 303 | F44: 3.4485 | G44: 3.025 | H44: 3.025 | I44: 0
A45: 43 | B45: =升级!C44 -> 254 | C45: 0.215 | D45: 0.1433333333 | E45: 309 | F45: 3.528441 | G45: 3.0861 | H45: 3.0861 | I45: 0
A46: 44 | B46: =升级!C45 -> 260 | C46: 0.22 | D46: 0.1466666667 | E46: 317 | F46: 3.637226667 | G46: 3.172 | H46: 3.172 | I46: 0
A47: 45 | B47: =升级!C46 -> 264 | C47: 0.225 | D47: 0.15 | E47: 323 | F47: 3.7191 | G47: 3.234 | H47: 3.234 | I47: 0
A48: 46 | B48: =升级!C47 -> 268 | C48: 0.23 | D48: 0.1533333333 | E48: 330 | F48: 3.801848 | G48: 3.2964 | H48: 3.2964 | I48: 0
A49: 47 | B49: =升级!C48 -> 272 | C49: 0.235 | D49: 0.1566666667 | E49: 336 | F49: 3.885474667 | G49: 3.3592 | H49: 3.3592 | I49: 0
A50: 48 | B50: =升级!C49 -> 276 | C50: 0.24 | D50: 0.16 | E50: 342 | F50: 3.969984 | G50: 3.4224 | H50: 3.4224 | I50: 0
A51: 49 | B51: =升级!C50 -> 282 | C51: 0.245 | D51: 0.1633333333 | E51: 351 | F51: 4.084347 | G51: 3.5109 | H51: 3.5109 | I51: 0
A52: 50 | B52: =升级!C51 -> 300 | C52: 0.25 | D52: 0.1666666667 | E52: 375 | F52: 4.375 | G52: 3.75 | H52: 3.75 | I52: 0
A53: 51 | B53: =升级!C52 -> 304 | C53: 0.255 | D53: 0.17 | E53: 382 | F53: 4.463784 | G53: 3.8152 | H53: 3.8152 | I53: 0
A54: 52 | B54: =升级!C53 -> 310 | C54: 0.26 | D54: 0.1733333333 | E54: 391 | F54: 4.58304 | G54: 3.906 | H54: 3.906 | I54: 0
A55: 53 | B55: =升级!C54 -> 314 | C55: 0.265 | D55: 0.1766666667 | E55: 397 | F55: 4.673837667 | G55: 3.9721 | H55: 3.9721 | I55: 0
A56: 54 | B56: =升级!C55 -> 320 | C56: 0.27 | D56: 0.18 | E56: 406 | F56: 4.79552 | G56: 4.064 | H56: 4.064 | I56: 0
A57: 55 | B57: =升级!C56 -> 326 | C57: 0.275 | D57: 0.1833333333 | E57: 416 | F57: 4.918525 | G57: 4.1565 | H57: 4.1565 | I57: 0
A58: 56 | B58: =升级!C57 -> 330 | C58: 0.28 | D58: 0.1866666667 | E58: 422 | F58: 5.01248 | G58: 4.224 | H58: 4.224 | I58: 0
A59: 57 | B59: =升级!C58 -> 336 | C59: 0.285 | D59: 0.19 | E59: 432 | F59: 5.137944 | G59: 4.3176 | H59: 4.3176 | I59: 0
A60: 58 | B60: =升级!C59 -> 342 | C60: 0.29 | D60: 0.1933333333 | E60: 441 | F60: 5.264748 | G60: 4.4118 | H60: 4.4118 | I60: 0
A61: 59 | B61: =升级!C60 -> 348 | C61: 0.295 | D61: 0.1966666667 | E61: 451 | F61: 5.392898 | G61: 4.5066 | H61: 4.5066 | I61: 0
A62: 60 | B62: =升级!C61 -> 392 | C62: 0.3 | D62: 0.2 | E62: 510 | F62: 6.1152 | G62: 5.096 | H62: 5.096 | I62: 0
A63: 61 | B63: =升级!C62 -> 400 | C63: 0.305 | D63: 0.2033333333 | E63: 522 | F63: 6.2814 | G63: 5.22 | H63: 5.22 | I63: 0
A64: 62 | B64: =升级!C63 -> 406 | C64: 0.31 | D64: 0.2066666667 | E64: 532 | F64: 6.417777333 | G64: 5.3186 | H64: 5.3186 | I64: 0
A65: 63 | B65: =升级!C64 -> 412 | C65: 0.315 | D65: 0.21 | E65: 542 | F65: 6.555538 | G65: 5.4178 | H65: 5.4178 | I65: 0
A66: 64 | B66: =升级!C65 -> 420 | C66: 0.32 | D66: 0.2133333333 | E66: 554 | F66: 6.72672 | G66: 5.544 | H66: 5.544 | I66: 0
A67: 65 | B67: =升级!C66 -> 426 | C67: 0.325 | D67: 0.2166666667 | E67: 564 | F67: 6.867475 | G67: 5.6445 | H67: 5.6445 | I67: 0
A68: 66 | B68: =升级!C67 -> 434 | C68: =C$1*$A68/300 -> 0.33 | D68: 0.22 | E68: =ROUND(B68*(1+C68),0) -> 577 | F68: 7.042084 | G68: 5.7722 | H68: =G68 -> 5.7722 | I68: 0
A69: 67 | B69: =升级!C68 -> 440 | C69: 0.335 | D69: 0.2233333333 | E69: 587 | F69: =(1+C69)*(1+D69)*B69/B$3 -> 7.18586 | G69: =(1+C69)*B69/B$3 -> 5.874 | H69: 5.874 | I69: 0
A70: 68 | B70: =升级!C69 -> 448 | C70: 0.34 | D70: 0.2266666667 | E70: 600 | F70: 7.363925333 | G70: 6.0032 | H70: 6.0032 | I70: 0
A71: 69 | B71: =升级!C70 -> 456 | C71: 0.345 | D71: 0.23 | E71: 613 | F71: 7.543836 | G71: 6.1332 | H71: 6.1332 | I71: 0
A72: 70 | B72: =升级!C71 -> 486 | C72: 0.35 | D72: 0.2333333333 | E72: 656 | F72: 8.0919 | G72: 6.561 | H72: 6.561 | I72: 0
A73: 71 | B73: =升级!C72 -> 494 | C73: 0.355 | D73: 0.2366666667 | E73: 669 | F73: 8.277875667 | G73: 6.6937 | H73: 6.6937 | I73: 0
A74: 72 | B74: =升级!C73 -> 502 | C74: 0.36 | D74: 0.24 | E74: 683 | F74: 8.465728 | G74: 6.8272 | H74: 6.8272 | I74: 0
A75: 73 | B75: =升级!C74 -> 510 | C75: 0.365 | D75: 0.2433333333 | E75: 696 | F75: 8.655465 | G75: 6.9615 | H75: 6.9615 | I75: 0
A76: 74 | B76: =升级!C75 -> 518 | C76: 0.37 | D76: 0.2466666667 | E76: 710 | F76: 8.847094667 | G76: 7.0966 | H76: 7.0966 | I76: 0
A77: 75 | B77: =升级!C76 -> 526 | C77: 0.375 | D77: 0.25 | E77: 723 | F77: 9.040625 | G77: 7.2325 | H77: 7.2325 | I77: 0
A78: 76 | B78: =升级!C77 -> 536 | C78: 0.38 | D78: 0.2533333333 | E78: 740 | F78: 9.270656 | G78: 7.3968 | H78: 7.3968 | I78: 0
A79: 77 | B79: =升级!C78 -> 544 | C79: 0.385 | D79: 0.2566666667 | E79: 753 | F79: 9.468229333 | G79: 7.5344 | H79: 7.5344 | I79: 0
A80: 78 | B80: =升级!C79 -> 552 | C80: 0.39 | D80: 0.26 | E80: 767 | F80: 9.667728 | G80: 7.6728 | H80: 7.6728 | I80: 0
A81: 79 | B81: =升级!C80 -> 562 | C81: 0.395 | D81: 0.2633333333 | E81: 784 | F81: 9.904407 | G81: 7.8399 | H81: 7.8399 | I81: 0
A82: 80 | B82: =升级!C81 -> 600 | C82: 0.4 | D82: 0.2666666667 | E82: 840 | F82: 10.64 | G82: 8.4 | H82: 8.4 | I82: 0
A83: 81 | B83: =升级!C82 -> 608 | C83: 0.405 | D83: 0.27 | E83: 854 | F83: 10.848848 | G83: 8.5424 | H83: 8.5424 | I83: 0
A84: 82 | B84: =升级!C83 -> 618 | C84: 0.41 | D84: 0.2733333333 | E84: 871 | F84: 11.095572 | G84: 8.7138 | H84: 8.7138 | I84: 0
A85: 83 | B85: =升级!C84 -> 630 | C85: 0.415 | D85: 0.2766666667 | E85: 891 | F85: 11.380845 | G85: 8.9145 | H85: 8.9145 | I85: 0
A86: 84 | B86: =升级!C85 -> 640 | C86: 0.42 | D86: 0.28 | E86: 909 | F86: 11.63264 | G86: 9.088 | H86: 9.088 | I86: 0
A87: 85 | B87: =升级!C86 -> 650 | C87: 0.425 | D87: 0.2833333333 | E87: 926 | F87: 11.886875 | G87: 9.2625 | H87: 9.2625 | I87: 0
A88: 86 | B88: =升级!C87 -> 660 | C88: 0.43 | D88: 0.2866666667 | E88: 944 | F88: 12.14356 | G88: 9.438 | H88: 9.438 | I88: 0
A89: 87 | B89: =升级!C88 -> 672 | C89: 0.435 | D89: 0.29 | E89: 964 | F89: 12.439728 | G89: 9.6432 | H89: 9.6432 | I89: 0
A90: 88 | B90: =升级!C89 -> 682 | C90: 0.44 | D90: 0.2933333333 | E90: 982 | F90: 12.701568 | G90: 9.8208 | H90: 9.8208 | I90: 0
A91: 89 | B91: =升级!C90 -> 694 | C91: 0.445 | D91: 0.2966666667 | E91: 1003 | F91: 13.00336233 | G91: 10.0283 | H91: 10.0283 | I91: 0
A92: 90 | B92: =升级!C91 -> 786 | C92: 0.45 | D92: 0.3 | E92: 1140 | F92: 14.8161 | G92: 11.397 | H92: 11.397 | I92: 0
A93: 91 | B93: =升级!C92 -> 798 | C93: 0.455 | D93: 0.3033333333 | E93: 1161 | F93: 15.132873 | G93: 11.6109 | H93: 11.6109 | I93: 0
A94: 92 | B94: =升级!C93 -> 812 | C94: 0.46 | D94: 0.3066666667 | E94: 1186 | F94: 15.49079467 | G94: 11.8552 | H94: 11.8552 | I94: 0
A95: 93 | B95: =升级!C94 -> 824 | C95: 0.465 | D95: 0.31 | E95: 1207 | F95: 15.813796 | G95: 12.0716 | H95: 12.0716 | I95: 0
A96: 94 | B96: =升级!C95 -> 838 | C96: 0.47 | D96: 0.3133333333 | E96: 1232 | F96: 16.178428 | G96: 12.3186 | H96: 12.3186 | I96: 0
A97: 95 | B97: =升级!C96 -> 852 | C97: 0.475 | D97: 0.3166666667 | E97: 1257 | F97: 16.54655 | G97: 12.567 | H97: 12.567 | I97: 0
A98: 96 | B98: =升级!C97 -> 866 | C98: 0.48 | D98: 0.32 | E98: 1282 | F98: 16.918176 | G98: 12.8168 | H98: 12.8168 | I98: 0
A99: 97 | B99: =升级!C98 -> 880 | C99: 0.485 | D99: 0.3233333333 | E99: 1307 | F99: 17.29332 | G99: 13.068 | H99: 13.068 | I99: 0
A100: 98 | B100: =升级!C99 -> 894 | C100: 0.49 | D100: 0.3266666667 | E100: 1332 | F100: 17.671996 | G100: 13.3206 | H100: 13.3206 | I100: 0
A101: 99 | B101: =升级!C100 -> 910 | C101: 0.495 | D101: 0.33 | E101: 1360 | F101: 18.093985 | G101: 13.6045 | H101: 13.6045 | I101: 0
A102: 100 | B102: =升级!C101 -> 970 | C102: 0.5 | D102: 0.3333333333 | E102: 1455 | F102: 19.4 | G102: 14.55 | H102: 14.55 | I102: 0
A103: 101 | B103: =升级!C102 -> 986 | C103: 0.505 | D103: 0.3366666667 | E103: 1484 | F103: 19.83519767 | G103: 14.8393 | H103: 14.8393 | I103: 0
A104: 102 | B104: =升级!C103 -> 1002 | C104: 0.51 | D104: 0.34 | E104: 1513 | F104: 20.274468 | G104: 15.1302 | H104: 15.1302 | I104: 0
A105: 103 | B105: =升级!C104 -> 1018 | C105: 0.515 | D105: 0.3433333333 | E105: 1542 | F105: 20.717827 | G105: 15.4227 | H105: 15.4227 | I105: 0
A106: 104 | B106: =升级!C105 -> 1036 | C106: 0.52 | D106: 0.3466666667 | E106: 1575 | F106: 21.20622933 | G106: 15.7472 | H106: 15.7472 | I106: 0
A107: 105 | B107: =升级!C106 -> 1052 | C107: 0.525 | D107: 0.35 | E107: 1604 | F107: 21.65805 | G107: 16.043 | H107: 16.043 | I107: 0
A108: 106 | B108: =升级!C107 -> 1070 | C108: 0.53 | D108: 0.3533333333 | E108: 1637 | F108: 22.15542 | G108: 16.371 | H108: 16.371 | I108: 0
A109: 107 | B109: =升级!C108 -> 1088 | C109: 0.535 | D109: 0.3566666667 | E109: 1670 | F109: 22.65741867 | G109: 16.7008 | H109: 16.7008 | I109: 0
A110: 108 | B110: =升级!C109 -> 1104 | C110: 0.54 | D110: 0.36 | E110: 1700 | F110: 23.122176 | G110: 17.0016 | H110: 17.0016 | I110: 0
A111: 109 | B111: =升级!C110 -> 1124 | C111: 0.545 | D111: 0.3633333333 | E111: 1737 | F111: 23.675374 | G111: 17.3658 | H111: 17.3658 | I111: 0
A112: 110 | B112: =升级!C111 -> 1198 | C112: 0.55 | D112: 0.3666666667 | E112: 1857 | F112: 25.37763333 | G112: 18.569 | H112: 18.569 | I112: 0
A113: 111 | B113: =升级!C112 -> 1216 | C113: 0.555 | D113: 0.37 | E113: 1891 | F113: 25.905056 | G113: 18.9088 | H113: 18.9088 | I113: 0
A114: 112 | B114: =升级!C113 -> 1236 | C114: 0.56 | D114: 0.3733333333 | E114: 1928 | F114: 26.480064 | G114: 19.2816 | H114: 19.2816 | I114: 0
A115: 113 | B115: =升级!C114 -> 1258 | C115: 0.565 | D115: 0.3766666667 | E115: 1969 | F115: 27.10340033 | G115: 19.6877 | H115: 19.6877 | I115: 0
A116: 114 | B116: =升级!C115 -> 1278 | C116: 0.57 | D116: 0.38 | E116: 2006 | F116: 27.689148 | G116: 20.0646 | H116: 20.0646 | I116: 0
A117: 115 | B117: =升级!C116 -> 1300 | C117: 0.575 | D117: 0.3833333333 | E117: 2048 | F117: 28.32375 | G117: 20.475 | H117: 20.475 | I117: 0
A118: 116 | B118: =升级!C117 -> 1320 | C118: 0.58 | D118: 0.3866666667 | E118: 2086 | F118: 28.92032 | G118: 20.856 | H118: 20.856 | I118: 0
A119: 117 | B119: =升级!C118 -> 1342 | C119: 0.585 | D119: 0.39 | E119: 2127 | F119: 29.566273 | G119: 21.2707 | H119: 21.2707 | I119: 0
A120: 118 | B120: =升级!C119 -> 1364 | C120: 0.59 | D120: 0.3933333333 | E120: 2169 | F120: 30.218056 | G120: 21.6876 | H120: 21.6876 | I120: 0
A121: 119 | B121: =升级!C120 -> 1386 | C121: 0.595 | D121: 0.3966666667 | E121: 2211 | F121: 30.875691 | G121: 22.1067 | H121: 22.1067 | I121: 0
A122: 120 | B122: =升级!C121 -> 1570 | C122: 0.6 | D122: 0.4 | E122: 2512 | F122: 35.168 | G122: 25.12 | H122: 25.12 | I122: 0
A123: 121 | B123: =升级!C122 -> 1596 | C123: 0.605 | D123: 0.4033333333 | E123: 2562 | F123: 35.947506 | G123: 25.6158 | H123: 25.6158 | I123: 0
A124: 122 | B124: =升级!C123 -> 1622 | C124: 0.61 | D124: 0.4066666667 | E124: 2611 | F124: 36.73397467 | G124: 26.1142 | H124: 26.1142 | I124: 0
A125: 123 | B125: =升级!C124 -> 1648 | C125: 0.615 | D125: 0.41 | E125: 2662 | F125: 37.527432 | G125: 26.6152 | H125: 26.6152 | I125: 0
A126: 124 | B126: =升级!C125 -> 1676 | C126: 0.62 | D126: 0.4133333333 | E126: 2715 | F126: 38.373696 | G126: 27.1512 | H126: 27.1512 | I126: 0
A127: 125 | B127: =升级!C126 -> 1702 | C127: 0.625 | D127: 0.4166666667 | E127: 2766 | F127: 39.18145833 | G127: 27.6575 | H127: 27.6575 | I127: 0
A128: 126 | B128: =升级!C127 -> 1732 | C128: 0.63 | D128: 0.42 | E128: 2823 | F128: 40.088872 | G128: 28.2316 | H128: 28.2316 | I128: 0
A129: 127 | B129: =升级!C128 -> 1760 | C129: 0.635 | D129: 0.4233333333 | E129: 2878 | F129: 40.95784 | G129: 28.776 | H129: 28.776 | I129: 0
A130: 128 | B130: =升级!C129 -> 1788 | C130: 0.64 | D130: 0.4266666667 | E130: 2932 | F130: 41.834432 | G130: 29.3232 | H130: 29.3232 | I130: 0
A131: 129 | B131: =升级!C130 -> 1818 | C131: 0.645 | D131: 0.43 | E131: 2991 | F131: 42.765723 | G131: 29.9061 | H131: 29.9061 | I131: 0
A132: 130 | B132: =升级!C131 -> 1938 | C132: =C$1*$A132/300 -> 0.65 | D132: 0.4333333333 | E132: =ROUND(B132*(1+C132),0) -> 3198 | F132: 45.8337 | G132: 31.977 | H132: =G132 -> 31.977 | I132: 0
A133: 131 | B133: =升级!C132 -> 1970 | C133: 0.655 | D133: 0.4366666667 | E133: 3260 | F133: =(1+C133)*(1+D133)*B133/B$3 -> 46.84036167 | G133: =(1+C133)*B133/B$3 -> 32.6035 | H133: 32.6035 | I133: 0
A134: 132 | B134: =升级!C133 -> 2002 | C134: 0.66 | D134: 0.44 | E134: 3323 | F134: 47.855808 | G134: 33.2332 | H134: 33.2332 | I134: 0
A135: 133 | B135: =升级!C134 -> 2036 | C135: 0.665 | D135: 0.4433333333 | E135: 3390 | F135: 48.928134 | G135: 33.8994 | H135: 33.8994 | I135: 0
A136: 134 | B136: =升级!C135 -> 2068 | C136: 0.67 | D136: 0.4466666667 | E136: 3454 | F136: 49.96150133 | G136: 34.5356 | H136: 34.5356 | I136: 0
A137: 135 | B137: =升级!C136 -> 2102 | C137: 0.675 | D137: 0.45 | E137: 3521 | F137: 51.052325 | G137: 35.2085 | H137: 35.2085 | I137: 0
A138: 136 | B138: =升级!C137 -> 2138 | C138: 0.68 | D138: 0.4533333333 | E138: 3592 | F138: 52.201408 | G138: 35.9184 | H138: 35.9184 | I138: 0
A139: 137 | B139: =升级!C138 -> 2172 | C139: 0.685 | D139: 0.4566666667 | E139: 3660 | F139: 53.311378 | G139: 36.5982 | H139: 36.5982 | I139: 0
A140: 138 | B140: =升级!C139 -> 2208 | C140: 0.69 | D140: 0.46 | E140: 3732 | F140: 54.480192 | G140: 37.3152 | H140: 37.3152 | I140: 0
A141: 139 | B141: =升级!C140 -> 2244 | C141: 0.695 | D141: 0.4633333333 | E141: 3804 | F141: 55.659054 | G141: 38.0358 | H141: 38.0358 | I141: 0
A142: 140 | B142: =升级!C141 -> 2392 | C142: 0.7 | D142: 0.4666666667 | E142: 4066 | F142: 59.64053333 | G142: 40.664 | H142: 40.664 | I142: 0
A143: 141 | B143: =升级!C142 -> 2432 | C143: 0.705 | D143: 0.47 | E143: 4147 | F143: 60.954432 | G143: 41.4656 | H143: 41.4656 | I143: 0
A144: 142 | B144: =升级!C143 -> 2472 | C144: 0.71 | D144: 0.4733333333 | E144: 4227 | F144: 62.279568 | G144: 42.2712 | H144: 42.2712 | I144: 0
A145: 143 | B145: =升级!C144 -> 2512 | C145: 0.715 | D145: 0.4766666667 | E145: 4308 | F145: 63.61598133 | G145: 43.0808 | H145: 43.0808 | I145: 0
A146: 144 | B146: =升级!C145 -> 2554 | C146: 0.72 | D146: 0.48 | E146: 4393 | F146: 65.014624 | G146: 43.9288 | H146: 43.9288 | I146: 0
A147: 145 | B147: =升级!C146 -> 2596 | C147: 0.725 | D147: 0.4833333333 | E147: 4478 | F147: 66.42515 | G147: 44.781 | H147: 44.781 | I147: 0
A148: 146 | B148: =升级!C147 -> 2638 | C148: 0.73 | D148: 0.4866666667 | E148: 4564 | F148: 67.84760133 | G148: 45.6374 | H148: 45.6374 | I148: 0
A149: 147 | B149: =升级!C148 -> 2682 | C149: 0.735 | D149: 0.49 | E149: 4653 | F149: 69.333723 | G149: 46.5327 | H149: 46.5327 | I149: 0
A150: 148 | B150: =升级!C149 -> 2726 | C150: 0.74 | D150: 0.4933333333 | E150: 4743 | F150: 70.832384 | G150: 47.4324 | H150: 47.4324 | I150: 0
A151: 149 | B151: =升级!C150 -> 2772 | C151: 0.745 | D151: 0.4966666667 | E151: 4837 | F151: 72.395862 | G151: 48.3714 | H151: 48.3714 | I151: 0
A152: 150 | B152: =升级!C151 -> 3136 | C152: 0.75 | D152: 0.5 | E152: 5488 | F152: 82.32 | G152: 54.88 | H152: 54.88 | I152: 0
A153: 151 | B153: =升级!C152 -> 3188 | C153: 0.755 | D153: 0.5033333333 | E153: 5595 | F153: 84.110598 | G153: 55.9494 | H153: 55.9494 | I153: 0
A154: 152 | B154: =升级!C153 -> 3240 | C154: 0.76 | D154: 0.5066666667 | E154: 5702 | F154: 85.91616 | G154: 57.024 | H154: 57.024 | I154: 0
A155: 153 | B155: =升级!C154 -> 3294 | C155: 0.765 | D155: 0.51 | E155: 5814 | F155: 87.790041 | G155: 58.1391 | H155: 58.1391 | I155: 0
A156: 154 | B156: =升级!C155 -> 3348 | C156: 0.77 | D156: 0.5133333333 | E156: 5926 | F156: 89.679528 | G156: 59.2596 | H156: 59.2596 | I156: 0
A157: 155 | B157: =升级!C156 -> 3404 | C157: 0.775 | D157: 0.5166666667 | E157: 6042 | F157: 91.63851667 | G157: 60.421 | H157: 60.421 | I157: 0
A158: 156 | B158: =升级!C157 -> 3460 | C158: 0.78 | D158: 0.52 | E158: 6159 | F158: 93.61376 | G158: 61.588 | H158: 61.588 | I158: 0
A159: 157 | B159: =升级!C158 -> 3516 | C159: 0.785 | D159: 0.5233333333 | E159: 6276 | F159: 95.605314 | G159: 62.7606 | H159: 62.7606 | I159: 0
A160: 158 | B160: =升级!C159 -> 3574 | C160: 0.79 | D160: 0.5266666667 | E160: 6397 | F160: 97.66788933 | G160: 63.9746 | H160: 63.9746 | I160: 0
A161: 159 | B161: =升级!C160 -> 3634 | C161: 0.795 | D161: 0.53 | E161: 6523 | F161: 99.802359 | G161: 65.2303 | H161: 65.2303 | I161: 0
A162: 160 | B162: =升级!C161 -> 3872 | C162: 0.8 | D162: 0.5333333333 | E162: 6970 | F162: 106.8672 | G162: 69.696 | H162: 69.696 | I162: =升级!J161/升级!C$2 -> 83.64
A163: 161 | B163: =升级!C162 -> 3936 | C163: 0.805 | D163: 0.5366666667 | E163: 7104 | F163: 109.172176 | G163: 71.0448 | H163: 71.0448 | I163: =升级!J162/升级!C$2 -> 85.25
A164: 162 | B164: =升级!C163 -> 4002 | C164: 0.81 | D164: 0.54 | E164: 7244 | F164: 111.551748 | G164: 72.4362 | H164: 72.4362 | I164: =升级!J163/升级!C$2 -> 86.93
A165: 163 | B165: =升级!C164 -> 4068 | C165: 0.815 | D165: 0.5433333333 | E165: 7383 | F165: 113.950782 | G165: 73.8342 | H165: 73.8342 | I165: =升级!J164/升级!C$2 -> 88.6
A166: 164 | B166: =升级!C165 -> 4134 | C166: 0.82 | D166: 0.5466666667 | E166: 7524 | F166: 116.369344 | G166: 75.2388 | H166: 75.2388 | I166: =升级!J165/升级!C$2 -> 90.29
A167: 165 | B167: =升级!C166 -> 4202 | C167: 0.825 | D167: 0.55 | E167: 7669 | F167: 118.864075 | G167: 76.6865 | H167: 76.6865 | I167: =升级!J166/升级!C$2 -> 92.03
A168: 166 | B168: =升级!C167 -> 4272 | C168: 0.83 | D168: 0.5533333333 | E168: 7818 | F168: 121.435872 | G168: 78.1776 | H168: 78.1776 | I168: =升级!J167/升级!C$2 -> 93.82
A169: 167 | B169: =升级!C168 -> 4342 | C169: 0.835 | D169: 0.5566666667 | E169: 7968 | F169: 124.0285063 | G169: 79.6757 | H169: 79.6757 | I169: =升级!J168/升级!C$2 -> 95.62
A170: 168 | B170: =升级!C169 -> 4414 | C170: 0.84 | D170: 0.56 | E170: 8122 | F170: 126.699456 | G170: 81.2176 | H170: 81.2176 | I170: =升级!J169/升级!C$2 -> 97.46
A171: 169 | B171: =升级!C170 -> 4486 | C171: 0.845 | D171: 0.5633333333 | E171: 8277 | F171: 129.391941 | G171: 82.7667 | H171: 82.7667 | I171: =升级!J170/升级!C$2 -> 99.32
A172: 170 | B172: =升级!C171 -> 4782 | C172: 0.85 | D172: 0.5666666667 | E172: 8847 | F172: 138.5983 | G172: 88.467 | H172: 88.467 | I172: =升级!J171/升级!C$2 -> 123.86
A173: 171 | B173: =升级!C172 -> 4860 | C173: 0.855 | D173: 0.57 | E173: 9015 | F173: 141.54021 | G173: 90.153 | H173: 90.153 | I173: =升级!J172/升级!C$2 -> 126.21
A174: 172 | B174: =升级!C173 -> 4940 | C174: 0.86 | D174: 0.5733333333 | E174: 9188 | F174: 144.56416 | G174: 91.884 | H174: 91.884 | I174: =升级!J173/升级!C$2 -> 128.63
A175: 173 | B175: =升级!C174 -> 5022 | C175: 0.865 | D175: 0.5766666667 | E175: 9366 | F175: 147.671073 | G175: 93.6603 | H175: 93.6603 | I175: =升级!J174/升级!C$2 -> 131.12
A176: 174 | B176: =升级!C175 -> 5104 | C176: 0.87 | D176: 0.58 | E176: 9544 | F176: 150.802784 | G176: 95.4448 | H176: 95.4448 | I176: =升级!J175/升级!C$2 -> 133.62
A177: 175 | B177: =升级!C176 -> 5188 | C177: 0.875 | D177: 0.5833333333 | E177: 9728 | F177: 154.01875 | G177: 97.275 | H177: 97.275 | I177: =升级!J176/升级!C$2 -> 136.19
A178: 176 | B178: =升级!C177 -> 5274 | C178: 0.88 | D178: 0.5866666667 | E178: 9915 | F178: 157.319904 | G178: 99.1512 | H178: 99.1512 | I178: =升级!J177/升级!C$2 -> 138.81
A179: 177 | B179: =升级!C178 -> 5360 | C179: 0.885 | D179: 0.59 | E179: 10104 | F179: 160.64724 | G179: 101.036 | H179: 101.036 | I179: =升级!J178/升级!C$2 -> 141.46
A180: 178 | B180: =升级!C179 -> 5448 | C180: 0.89 | D180: 0.5933333333 | E180: 10297 | F180: 164.061072 | G180: 102.9672 | H180: 102.9672 | I180: =升级!J179/升级!C$2 -> 144.16
A181: 179 | B181: =升级!C180 -> 5538 | C181: 0.895 | D181: 0.5966666667 | E181: 10495 | F181: 167.562343 | G181: 104.9451 | H181: 104.9451 | I181: =升级!J180/升级!C$2 -> 146.93
A182: 180 | B182: =升级!C181 -> 6268 | C182: 0.9 | D182: 0.6 | E182: 11909 | F182: 190.5472 | G182: 119.092 | H182: 119.092 | I182: =升级!J181/升级!C$2 -> 238.18
A183: 181 | B183: =升级!C182 -> 6372 | C183: 0.905 | D183: 0.6033333333 | E183: 12139 | F183: 194.623182 | G183: 121.3866 | H183: 121.3866 | I183: =升级!J182/升级!C$2 -> 242.78
A184: 182 | B184: =升级!C183 -> 6476 | C184: 0.91 | D184: 0.6066666667 | E184: 12369 | F184: 198.7311707 | G184: 123.6916 | H184: 123.6916 | I184: =升级!J183/升级!C$2 -> 247.38
A185: 183 | B185: =升级!C184 -> 6584 | C185: 0.915 | D185: 0.61 | E185: 12608 | F185: 202.994596 | G185: 126.0836 | H185: 126.0836 | I185: =升级!J184/升级!C$2 -> 252.16
A186: 184 | B186: =升级!C185 -> 6692 | C186: 0.92 | D186: 0.6133333333 | E186: 12849 | F186: 207.291392 | G186: 128.4864 | H186: 128.4864 | I186: =升级!J185/升级!C$2 -> 256.98
A187: 185 | B187: =升级!C186 -> 6802 | C187: 0.925 | D187: 0.6166666667 | E187: 13094 | F187: 211.6839083 | G187: 130.9385 | H187: 130.9385 | I187: =升级!J186/升级!C$2 -> 261.88
A188: 186 | B188: =升级!C187 -> 6914 | C188: 0.93 | D188: 0.62 | E188: 13344 | F188: 216.173124 | G188: 133.4402 | H188: 133.4402 | I188: =升级!J187/升级!C$2 -> 266.88
A189: 187 | B189: =升级!C188 -> 7028 | C189: 0.935 | D189: 0.6233333333 | E189: 13599 | F189: 220.760022 | G189: 135.9918 | H189: 135.9918 | I189: =升级!J188/升级!C$2 -> 271.98
A190: 188 | B190: =升级!C189 -> 7144 | C190: 0.94 | D190: 0.6266666667 | E190: 13859 | F190: 225.4455893 | G190: 138.5936 | H190: 138.5936 | I190: =升级!J189/升级!C$2 -> 277.18
A191: 189 | B191: =升级!C190 -> 7262 | C191: 0.945 | D191: 0.63 | E191: 14125 | F191: 230.230817 | G191: 141.2459 | H191: 141.2459 | I191: =升级!J190/升级!C$2 -> 282.5
A192: 190 | B192: =升级!C191 -> 7740 | C192: 0.95 | D192: 0.6333333333 | E192: 15093 | F192: 246.519 | G192: 150.93 | H192: 150.93 | I192: =升级!J191/升级!C$2 -> 332.05
A193: 191 | B193: =升级!C192 -> 7868 | C193: 0.955 | D193: 0.6366666667 | E193: 15382 | F193: 251.7510847 | G193: 153.8194 | H193: 153.8194 | I193: =升级!J192/升级!C$2 -> 338.4
A194: 192 | B194: =升级!C193 -> 7996 | C194: 0.96 | D194: 0.64 | E194: 15672 | F194: 257.023424 | G194: 156.7216 | H194: 156.7216 | I194: =升级!J193/升级!C$2 -> 344.78
A195: 193 | B195: =升级!C194 -> 8128 | C195: 0.965 | D195: 0.6433333333 | E195: 15972 | F195: 262.465312 | G195: 159.7152 | H195: 159.7152 | I195: =升级!J194/升级!C$2 -> 351.38
A196: 194 | B196: =升级!C195 -> 8262 | C196: =C$1*$A196/300 -> 0.97 | D196: 0.6466666667 | E196: =ROUND(B196*(1+C196),0) -> 16276 | F196: 268.013772 | G196: 162.7614 | H196: =G196 -> 162.7614 | I196: =升级!J195/升级!C$2 -> 358.07
A197: 195 | B197: =升级!C196 -> 8398 | C197: 0.975 | D197: 0.65 | E197: 16586 | F197: =(1+C197)*(1+D197)*B197/B$3 -> 273.669825 | G197: =(1+C197)*B197/B$3 -> 165.8605 | H197: 165.8605 | I197: =升级!J196/升级!C$2 -> 364.89
A198: 196 | B198: =升级!C197 -> 8536 | C198: 0.98 | D198: 0.6533333333 | E198: 16901 | F198: 279.434496 | G198: 169.0128 | H198: 169.0128 | I198: =升级!J197/升级!C$2 -> 371.82
A199: 197 | B199: =升级!C198 -> 8678 | C199: 0.985 | D199: 0.6566666667 | E199: 17226 | F199: 285.3745837 | G199: 172.2583 | H199: 172.2583 | I199: =升级!J198/升级!C$2 -> 378.97
A200: 198 | B200: =升级!C199 -> 8820 | C200: 0.99 | D200: 0.66 | E200: 17552 | F200: 291.35988 | G200: 175.518 | H200: 175.518 | I200: =升级!J199/升级!C$2 -> 386.14
... 102 more rows

Sheet 升级
A1: 等级 | B1: 生命 | C1: 攻击 | D1: 防御 | E1: 防御系数 | F1: 涨幅 | H1: 神识上限 | I1: 护盾百分比 | J1: 护盾 | K1: =D301 -> 50000 | L1: 标准免伤 | M1: 0.5
A2: 1 | B2: =C2*20 -> 2000 | C2: =D2*2 -> 100 | D2: =ROUND(E2*M$1,0) -> 50 | E2: 100 | H2: 500
A3: 2 | B3: =C3*20 -> 2040 | C3: =D3*2 -> 102 | D3: =ROUND(MAX(D2+1,E3*M$1),0) -> 51 | E3: =E2*(1+F3) -> 101.646917 | F3: 0.01646917 | H3: 500
A4: 3 | B4: 2080 | C4: 104 | D4: 52 | E4: =E3*(1+F4) -> 103.3209574 | F4: =F3 -> 0.01646917 | H4: 500
A5: 4 | B5: 2120 | C5: 106 | D5: 53 | E5: 105.0225678 | F5: =F4 -> 0.01646917 | H5: 500
A6: 5 | B6: 2160 | C6: 108 | D6: 54 | E6: 106.7522023 | F6: 0.01646917 | H6: 500
A7: 6 | B7: 2200 | C7: 110 | D7: 55 | E7: 108.5103225 | F7: 0.01646917 | H7: 500
A8: 7 | B8: 2240 | C8: 112 | D8: 56 | E8: 110.2973974 | F8: 0.01646917 | H8: 500
A9: 8 | B9: 2280 | C9: 114 | D9: 57 | E9: 112.113904 | F9: 0.01646917 | H9: 500
A10: 9 | B10: 2320 | C10: 116 | D10: 58 | E10: 113.9603269 | F10: 0.01646917 | H10: 500
A11: 10 | B11: 2440 | C11: 122 | D11: 61 | E11: 121.4676549 | F11: =F3*4 -> 0.06587668 | H11: 500
A12: 11 | B12: 2480 | C12: 124 | D12: 62 | E12: 123.4681264 | F12: =F3 -> 0.01646917 | H12: 500
A13: 12 | B13: 2520 | C13: 126 | D13: 63 | E13: 125.5015439 | F13: =F3 -> 0.01646917 | H13: 500
A14: 13 | B14: 2560 | C14: 128 | D14: 64 | E14: 127.5684502 | F14: =F4 -> 0.01646917 | H14: 500
A15: 14 | B15: 2600 | C15: 130 | D15: 65 | E15: 129.6693967 | F15: 0.01646917 | H15: 500
A16: 15 | B16: 2640 | C16: 132 | D16: 66 | E16: 131.804944 | F16: 0.01646917 | H16: 500
A17: 16 | B17: 2680 | C17: 134 | D17: 67 | E17: 133.9756621 | F17: 0.01646917 | H17: 500
A18: 17 | B18: 2720 | C18: 136 | D18: 68 | E18: 136.18213 | F18: 0.01646917 | H18: 500
A19: 18 | B19: 2760 | C19: 138 | D19: 69 | E19: 138.4249367 | F19: 0.01646917 | H19: 500
A20: 19 | B20: 2800 | C20: 140 | D20: 70 | E20: 140.7046805 | F20: 0.01646917 | H20: 500
A21: 20 | B21: 3000 | C21: 150 | D21: 75 | E21: 149.9738377 | F21: 0.06587668 | H21: 500
A22: 21 | B22: 3040 | C22: 152 | D22: 76 | E22: 152.4437823 | F22: 0.01646917 | H22: 500
A23: 22 | B23: 3080 | C23: 154 | D23: 77 | E23: 154.9544049 | F23: 0.01646917 | H23: 500
A24: 23 | B24: 3160 | C24: 158 | D24: 79 | E24: 157.5063753 | F24: 0.01646917 | H24: 500
A25: 24 | B25: 3200 | C25: 160 | D25: 80 | E25: 160.1003746 | F25: 0.01646917 | H25: 500
A26: 25 | B26: 3240 | C26: 162 | D26: 81 | E26: 162.7370949 | F26: 0.01646917 | H26: 500
A27: 26 | B27: 3320 | C27: 166 | D27: 83 | E27: 165.4172398 | F27: 0.01646917 | H27: 500
A28: 27 | B28: 3360 | C28: 168 | D28: 84 | E28: 168.1415244 | F28: 0.01646917 | H28: 500
A29: 28 | B29: 3400 | C29: 170 | D29: 85 | E29: 170.9106758 | F29: 0.01646917 | H29: 500
A30: 29 | B30: 3480 | C30: 174 | D30: 87 | E30: 173.7254327 | F30: 0.01646917 | H30: 500
A31: 30 | B31: 3920 | C31: 196 | D31: 98 | E31: 196.6143422 | F31: =F11*2 -> 0.13175336 | H31: =H2+100 -> 600
A32: 31 | B32: 4000 | C32: 200 | D32: 100 | E32: 199.8524172 | F32: =F3 -> 0.01646917 | H32: =H2+100 -> 600
A33: 32 | B33: 4080 | C33: 204 | D33: 102 | E33: 203.1438207 | F33: =F3 -> 0.01646917 | H33: =H3+100 -> 600
A34: 33 | B34: 4120 | C34: 206 | D34: 103 | E34: 206.4894308 | F34: =F4 -> 0.01646917 | H34: 600
A35: 34 | B35: 4200 | C35: 210 | D35: 105 | E35: 209.8901403 | F35: 0.01646917 | H35: 600
A36: 35 | B36: 4280 | C36: 214 | D36: 107 | E36: 213.3468567 | F36: 0.01646917 | H36: 600
A37: 36 | B37: 4320 | C37: 216 | D37: 108 | E37: 216.8605024 | F37: 0.01646917 | H37: 600
A38: 37 | B38: 4400 | C38: 220 | D38: 110 | E38: 220.4320149 | F38: 0.01646917 | H38: 600
A39: 38 | B39: 4480 | C39: 224 | D39: 112 | E39: 224.0623472 | F39: 0.01646917 | H39: 600
A40: 39 | B40: 4560 | C40: 228 | D40: 114 | E40: 227.7524681 | F40: 0.01646917 | H40: 600
A41: 40 | B41: 4840 | C41: 242 | D41: 121 | E41: 242.7560445 | F41: 0.06587668 | H41: 600
A42: 41 | B42: 4920 | C42: 246 | D42: 123 | E42: 246.7540351 | F42: 0.01646917 | H42: 600
A43: 42 | B43: 5000 | C43: 250 | D43: 125 | E43: 250.8178693 | F43: 0.01646917 | H43: 600
A44: 43 | B44: 5080 | C44: 254 | D44: 127 | E44: 254.9486314 | F44: 0.01646917 | H44: 600
A45: 44 | B45: 5200 | C45: 260 | D45: 130 | E45: 259.1474237 | F45: 0.01646917 | H45: 600
A46: 45 | B46: 5280 | C46: 264 | D46: 132 | E46: 263.4153667 | F46: 0.01646917 | H46: 600
A47: 46 | B47: 5360 | C47: 268 | D47: 134 | E47: 267.7535992 | F47: 0.01646917 | H47: 600
A48: 47 | B48: 5440 | C48: 272 | D48: 136 | E48: 272.1632787 | F48: 0.01646917 | H48: 600
A49: 48 | B49: 5520 | C49: 276 | D49: 138 | E49: 276.645582 | F49: 0.01646917 | H49: 600
A50: 49 | B50: 5640 | C50: 282 | D50: 141 | E50: 281.2017051 | F50: 0.01646917 | H50: 600
A51: 50 | B51: 6000 | C51: 300 | D51: 150 | E51: 299.7263399 | F51: 0.06587668 | H51: 600
A52: 51 | B52: 6080 | C52: 304 | D52: 152 | E52: 304.6625839 | F52: 0.01646917 | H52: 600
A53: 52 | B53: 6200 | C53: 310 | D53: 155 | E53: 309.6801238 | F53: 0.01646917 | H53: 600
A54: 53 | B54: 6280 | C54: 314 | D54: 157 | E54: 314.7802984 | F54: 0.01646917 | H54: 600
A55: 54 | B55: 6400 | C55: 320 | D55: 160 | E55: 319.9644687 | F55: 0.01646917 | H55: 600
A56: 55 | B56: 6520 | C56: 326 | D56: 163 | E56: 325.2340179 | F56: 0.01646917 | H56: 600
A57: 56 | B57: 6600 | C57: 330 | D57: 165 | E57: 330.5903522 | F57: 0.01646917 | H57: 600
A58: 57 | B58: 6720 | C58: 336 | D58: 168 | E58: 336.0349009 | F58: 0.01646917 | H58: 600
A59: 58 | B59: 6840 | C59: 342 | D59: 171 | E59: 341.5691169 | F59: 0.01646917 | H59: 600
A60: 59 | B60: 6960 | C60: 348 | D60: 174 | E60: 347.1944767 | F60: 0.01646917 | H60: 600
A61: 60 | B61: 7840 | C61: 392 | D61: 196 | E61: 392.9385156 | F61: 0.13175336 | H61: 700
A62: 61 | B62: 8000 | C62: 400 | D62: 200 | E62: 399.4098868 | F62: 0.01646917 | H62: 700
A63: 62 | B63: 8120 | C63: 406 | D63: 203 | E63: 405.9878361 | F63: 0.01646917 | H63: 700
A64: 63 | B64: 8240 | C64: 412 | D64: 206 | E64: 412.6741188 | F64: 0.01646917 | H64: 700
A65: 64 | B65: 8400 | C65: 420 | D65: 210 | E65: 419.470519 | F65: 0.01646917 | H65: 700
A66: 65 | B66: 8520 | C66: 426 | D66: 213 | E66: 426.3788503 | F66: 0.01646917 | H66: 700
A67: 66 | B67: =C67*20 -> 8680 | C67: =D67*2 -> 434 | D67: =ROUND(MAX(D66+1,E67*M$1),0) -> 217 | E67: 433.4009561 | F67: 0.01646917 | H67: 700
A68: 67 | B68: 8800 | C68: 440 | D68: 220 | E68: =E67*(1+F68) -> 440.5387101 | F68: 0.01646917 | H68: 700
A69: 68 | B69: 8960 | C69: 448 | D69: 224 | E69: 447.794017 | F69: 0.01646917 | H69: 700
A70: 69 | B70: 9120 | C70: 456 | D70: 228 | E70: 455.1688128 | F70: 0.01646917 | H70: 700
A71: 70 | B71: 9720 | C71: 486 | D71: 243 | E71: 485.153823 | F71: 0.06587668 | H71: 700
A72: 71 | B72: 9880 | C72: 494 | D72: 247 | E72: 493.1439038 | F72: 0.01646917 | H72: 700
A73: 72 | B73: 10040 | C73: 502 | D73: 251 | E73: 501.2655746 | F73: 0.01646917 | H73: 700
A74: 73 | B74: 10200 | C74: 510 | D74: 255 | E74: 509.5210026 | F74: 0.01646917 | H74: 700
A75: 74 | B75: 10360 | C75: 518 | D75: 259 | E75: 517.9123906 | F75: 0.01646917 | H75: 700
A76: 75 | B76: 10520 | C76: 526 | D76: 263 | E76: 526.4419778 | F76: 0.01646917 | H76: 700
A77: 76 | B77: 10720 | C77: 536 | D77: 268 | E77: 535.1120402 | F77: 0.01646917 | H77: 700
A78: 77 | B78: 10880 | C78: 544 | D78: 272 | E78: 543.9248914 | F78: 0.01646917 | H78: 700
A79: 78 | B79: 11040 | C79: 552 | D79: 276 | E79: 552.8828829 | F79: 0.01646917 | H79: 700
A80: 79 | B80: 11240 | C80: 562 | D80: 281 | E80: 561.9884051 | F80: 0.01646917 | H80: 700
A81: 80 | B81: 12000 | C81: 600 | D81: 300 | E81: 599.0103354 | F81: 0.06587668 | H81: 700
A82: 81 | B82: 12160 | C82: 608 | D82: 304 | E82: 608.8755384 | F82: 0.01646917 | H82: 700
A83: 82 | B83: 12360 | C83: 618 | D83: 309 | E83: 618.9032132 | F83: 0.01646917 | H83: 700
A84: 83 | B84: 12600 | C84: 630 | D84: 315 | E84: 629.0960354 | F84: 0.01646917 | H84: 700
A85: 84 | B85: 12800 | C85: 640 | D85: 320 | E85: 639.456725 | F85: 0.01646917 | H85: 700
A86: 85 | B86: 13000 | C86: 650 | D86: 325 | E86: 649.9880465 | F86: 0.01646917 | H86: 700
A87: 86 | B87: 13200 | C87: 660 | D87: 330 | E87: 660.6928101 | F87: 0.01646917 | H87: 700
A88: 87 | B88: 13440 | C88: 672 | D88: 336 | E88: 671.5738723 | F88: 0.01646917 | H88: 700
A89: 88 | B89: 13640 | C89: 682 | D89: 341 | E89: 682.6341366 | F89: 0.01646917 | H89: 700
A90: 89 | B90: 13880 | C90: 694 | D90: 347 | E90: 693.8765543 | F90: 0.01646917 | H90: 700
A91: 90 | B91: 15720 | C91: 786 | D91: 393 | E91: 785.2971217 | F91: 0.13175336 | H91: 800
A92: 91 | B92: 15960 | C92: 798 | D92: 399 | E92: 798.2303135 | F92: 0.01646917 | H92: 800
A93: 92 | B93: 16240 | C93: 812 | D93: 406 | E93: 811.3765042 | F93: 0.01646917 | H93: 800
A94: 93 | B94: 16480 | C94: 824 | D94: 412 | E94: 824.7392018 | F94: 0.01646917 | H94: 800
A95: 94 | B95: 16760 | C95: 838 | D95: 419 | E95: 838.3219719 | F95: 0.01646917 | H95: 800
A96: 95 | B96: 17040 | C96: 852 | D96: 426 | E96: 852.128439 | F96: 0.01646917 | H96: 800
A97: 96 | B97: 17320 | C97: 866 | D97: 433 | E97: 866.1622871 | F97: 0.01646917 | H97: =H67+100 -> 800
A98: 97 | B98: 17600 | C98: 880 | D98: 440 | E98: 880.4272611 | F98: =F68 -> 0.01646917 | H98: 800
A99: 98 | B99: 17880 | C99: 894 | D99: 447 | E99: 894.9271673 | F99: 0.01646917 | H99: 800
A100: 99 | B100: 18200 | C100: 910 | D100: 455 | E100: 909.665875 | F100: 0.01646917 | H100: 800
A101: 100 | B101: 19400 | C101: 970 | D101: 485 | E101: 969.5916427 | F101: 0.06587668 | H101: 800
A102: 101 | B102: 19720 | C102: 986 | D102: 493 | E102: 985.5600123 | F102: 0.01646917 | H102: 800
A103: 102 | B103: 20040 | C103: 1002 | D103: 501 | E103: 1001.791368 | F103: 0.01646917 | H103: 800
A104: 103 | B104: 20360 | C104: 1018 | D104: 509 | E104: 1018.29004 | F104: 0.01646917 | H104: 800
A105: 104 | B105: 20720 | C105: 1036 | D105: 518 | E105: 1035.060432 | F105: 0.01646917 | H105: 800
A106: 105 | B106: 21040 | C106: 1052 | D106: 526 | E106: 1052.107018 | F106: 0.01646917 | H106: 800
A107: 106 | B107: 21400 | C107: 1070 | D107: 535 | E107: 1069.434347 | F107: 0.01646917 | H107: 800
A108: 107 | B108: 21760 | C108: 1088 | D108: 544 | E108: 1087.047043 | F108: 0.01646917 | H108: 800
A109: 108 | B109: 22080 | C109: 1104 | D109: 552 | E109: 1104.949806 | F109: 0.01646917 | H109: 800
A110: 109 | B110: 22480 | C110: 1124 | D110: 562 | E110: 1123.147412 | F110: 0.01646917 | H110: 800
A111: 110 | B111: 23960 | C111: 1198 | D111: 599 | E111: 1197.136635 | F111: 0.06587668 | H111: 800
A112: 111 | B112: 24320 | C112: 1216 | D112: 608 | E112: 1216.852482 | F112: 0.01646917 | H112: 800
A113: 112 | B113: 24720 | C113: 1236 | D113: 618 | E113: 1236.893032 | F113: 0.01646917 | H113: 800
A114: 113 | B114: 25160 | C114: 1258 | D114: 629 | E114: 1257.263634 | F114: 0.01646917 | H114: 800
A115: 114 | B115: 25560 | C115: 1278 | D115: 639 | E115: 1277.969722 | F115: 0.01646917 | H115: 800
A116: 115 | B116: 26000 | C116: 1300 | D116: 650 | E116: 1299.016823 | F116: 0.01646917 | H116: 800
A117: 116 | B117: 26400 | C117: 1320 | D117: 660 | E117: 1320.410552 | F117: 0.01646917 | H117: 800
A118: 117 | B118: 26840 | C118: 1342 | D118: 671 | E118: 1342.156617 | F118: 0.01646917 | H118: 800
A119: 118 | B119: 27280 | C119: 1364 | D119: 682 | E119: 1364.260823 | F119: 0.01646917 | H119: 800
A120: 119 | B120: 27720 | C120: 1386 | D120: 693 | E120: 1386.729066 | F120: 0.01646917 | H120: 800
A121: 120 | B121: 31400 | C121: 1570 | D121: 785 | E121: 1569.43528 | F121: 0.13175336 | H121: 900
A122: 121 | B122: 31920 | C122: 1596 | D122: 798 | E122: 1595.282577 | F122: 0.01646917 | H122: 900
A123: 122 | B123: 32440 | C123: 1622 | D123: 811 | E123: 1621.555557 | F123: 0.01646917 | H123: 900
A124: 123 | B124: 32960 | C124: 1648 | D124: 824 | E124: 1648.261231 | F124: 0.01646917 | H124: 900
A125: 124 | B125: 33520 | C125: 1676 | D125: 838 | E125: 1675.406725 | F125: 0.01646917 | H125: 900
A126: 125 | B126: 34040 | C126: 1702 | D126: 851 | E126: 1702.999283 | F126: 0.01646917 | H126: 900
A127: 126 | B127: 34640 | C127: 1732 | D127: 866 | E127: 1731.046268 | F127: 0.01646917 | H127: 900
A128: 127 | B128: 35200 | C128: 1760 | D128: 880 | E128: 1759.555163 | F128: 0.01646917 | H128: 900
A129: 128 | B129: 35760 | C129: 1788 | D129: 894 | E129: 1788.533577 | F129: 0.01646917 | H129: 900
A130: 129 | B130: 36360 | C130: 1818 | D130: 909 | E130: 1817.98924 | F130: 0.01646917 | H130: 900
A131: 130 | B131: =C131*20 -> 38760 | C131: =D131*2 -> 1938 | D131: =ROUND(MAX(D130+1,E131*M$1),0) -> 969 | E131: 1937.752335 | F131: 0.06587668 | H131: 900
A132: 131 | B132: 39400 | C132: 1970 | D132: 985 | E132: =E131*(1+F132) -> 1969.665508 | F132: 0.01646917 | H132: 900
A133: 132 | B133: 40040 | C133: 2002 | D133: 1001 | E133: 2002.104264 | F133: 0.01646917 | H133: 900
A134: 133 | B134: 40720 | C134: 2036 | D134: 1018 | E134: 2035.07726 | F134: 0.01646917 | H134: 900
A135: 134 | B135: 41360 | C135: 2068 | D135: 1034 | E135: 2068.593293 | F135: 0.01646917 | H135: 900
A136: 135 | B136: 42040 | C136: 2102 | D136: 1051 | E136: 2102.661308 | F136: 0.01646917 | H136: 900
A137: 136 | B137: 42760 | C137: 2138 | D137: 1069 | E137: 2137.290394 | F137: 0.01646917 | H137: 900
A138: 137 | B138: 43440 | C138: 2172 | D138: 1086 | E138: 2172.489793 | F138: 0.01646917 | H138: 900
A139: 138 | B139: 44160 | C139: 2208 | D139: 1104 | E139: 2208.268897 | F139: 0.01646917 | H139: 900
A140: 139 | B140: 44880 | C140: 2244 | D140: 1122 | E140: 2244.637253 | F140: 0.01646917 | H140: 900
A141: 140 | B141: 47840 | C141: 2392 | D141: 1196 | E141: 2392.506503 | F141: 0.06587668 | H141: 900
A142: 141 | B142: 48640 | C142: 2432 | D142: 1216 | E142: 2431.909099 | F142: 0.01646917 | H142: 900
A143: 142 | B143: 49440 | C143: 2472 | D143: 1236 | E143: 2471.960623 | F143: 0.01646917 | H143: 900
A144: 143 | B144: 50240 | C144: 2512 | D144: 1256 | E144: 2512.671763 | F144: 0.01646917 | H144: 900
A145: 144 | B145: 51080 | C145: 2554 | D145: 1277 | E145: 2554.053381 | F145: 0.01646917 | H145: 900
A146: 145 | B146: 51920 | C146: 2596 | D146: 1298 | E146: 2596.116521 | F146: 0.01646917 | H146: 900
A147: 146 | B147: 52760 | C147: 2638 | D147: 1319 | E147: 2638.872405 | F147: 0.01646917 | H147: 900
A148: 147 | B148: 53640 | C148: 2682 | D148: 1341 | E148: 2682.332443 | F148: 0.01646917 | H148: 900
A149: 148 | B149: 54520 | C149: 2726 | D149: 1363 | E149: 2726.508232 | F149: 0.01646917 | H149: 900
A150: 149 | B150: 55440 | C150: 2772 | D150: 1386 | E150: 2771.41156 | F150: 0.01646917 | H150: 900
A151: 150 | B151: 62720 | C151: 3136 | D151: 1568 | E151: 3136.554345 | F151: 0.13175336 | H151: 1000
A152: 151 | B152: 63760 | C152: 3188 | D152: 1594 | E152: 3188.210792 | F152: 0.01646917 | H152: =H151 -> 1000
A153: 152 | B153: 64800 | C153: 3240 | D153: 1620 | E153: 3240.717977 | F153: 0.01646917 | H153: =H152 -> 1000
A154: 153 | B154: 65880 | C154: 3294 | D154: 1647 | E154: 3294.089912 | F154: 0.01646917 | H154: 1000
A155: 154 | B155: 66960 | C155: 3348 | D155: 1674 | E155: 3348.340839 | F155: 0.01646917 | H155: 1000
A156: 155 | B156: 68080 | C156: 3404 | D156: 1702 | E156: 3403.485234 | F156: 0.01646917 | H156: 1000
A157: 156 | B157: 69200 | C157: 3460 | D157: 1730 | E157: 3459.537811 | F157: 0.01646917 | H157: 1000
A158: 157 | B158: 70320 | C158: 3516 | D158: 1758 | E158: 3516.513527 | F158: 0.01646917 | H158: 1000
A159: 158 | B159: 71480 | C159: 3574 | D159: 1787 | E159: 3574.427586 | F159: 0.01646917 | H159: 1000
A160: 159 | B160: 72680 | C160: 3634 | D160: 1817 | E160: 3633.295442 | F160: 0.01646917 | H160: 1000 | N160: 160 | O160: 1 | P160: =P161-Q161 -> 0.06 | Q160: 0.01
A161: 160 | B161: 77440 | C161: 3872 | D161: 1936 | E161: 3872.644883 | F161: 0.06587668 | H161: 1000 | I161: =VLOOKUP(INT(A161*0.1)*10,N$160:P$174,3,FALSE) -> 0.06 | J161: =ROUND(主表!E162*20*I161,0) -> 8364 | N161: 170 | O161: 2 | P161: 0.07 | Q161: =Q160 -> 0.01
A162: 161 | B162: 78720 | C162: 3936 | D162: 1968 | E162: 3936.42413 | F162: =F132 -> 0.01646917 | H162: 1000 | I162: =VLOOKUP(INT(A162*0.1)*10,N$160:P$174,3,FALSE) -> 0.06 | J162: =ROUND(主表!E163*20*I162,0) -> 8525 | N162: 180 | O162: 3 | P162: 0.1 | Q162: =Q160*3 -> 0.03
A163: 162 | B163: 80040 | C163: 4002 | D163: 2001 | E163: 4001.253768 | F163: 0.01646917 | H163: 1000 | I163: 0.06 | J163: =ROUND(主表!E164*20*I163,0) -> 8693 | N163: 190 | O163: 4 | P163: 0.11 | Q163: =Q160 -> 0.01
A164: 163 | B164: 81360 | C164: 4068 | D164: 2034 | E164: 4067.151096 | F164: 0.01646917 | H164: 1000 | I164: 0.06 | J164: =ROUND(主表!E165*20*I164,0) -> 8860 | N164: 200 | O164: 5 | P164: 0.12 | Q164: =Q161 -> 0.01
A165: 164 | B165: 82680 | C165: 4134 | D165: 2067 | E165: 4134.133699 | F165: 0.01646917 | H165: 1000 | I165: 0.06 | J165: =ROUND(主表!E166*20*I165,0) -> 9029 | N165: 210 | O165: 6 | P165: 0.15 | Q165: 0.03
A166: 165 | B166: 84040 | C166: 4202 | D166: 2101 | E166: 4202.21945 | F166: 0.01646917 | H166: 1000 | I166: 0.06 | J166: =ROUND(主表!E167*20*I166,0) -> 9203 | N166: 220 | O166: 7 | P166: 0.16 | Q166: 0.01
A167: 166 | B167: 85440 | C167: 4272 | D167: 2136 | E167: 4271.426516 | F167: 0.01646917 | H167: 1000 | I167: 0.06 | J167: =ROUND(主表!E168*20*I167,0) -> 9382 | N167: 230 | O167: 8 | P167: 0.17 | Q167: 0.01
A168: 167 | B168: 86840 | C168: 4342 | D168: 2171 | E168: 4341.773366 | F168: 0.01646917 | H168: 1000 | I168: 0.06 | J168: =ROUND(主表!E169*20*I168,0) -> 9562 | N168: 240 | O168: 9 | P168: 0.2 | Q168: 0.03
A169: 168 | B169: 88280 | C169: 4414 | D169: 2207 | E169: 4413.278769 | F169: 0.01646917 | H169: 1000 | I169: 0.06 | J169: =ROUND(主表!E170*20*I169,0) -> 9746 | N169: 250 | O169: 10 | P169: 0.21 | Q169: 0.01
A170: 169 | B170: 89720 | C170: 4486 | D170: 2243 | E170: 4485.961808 | F170: 0.01646917 | H170: 1000 | I170: 0.06 | J170: =ROUND(主表!E171*20*I170,0) -> 9932 | N170: 260 | O170: 11 | P170: 0.22 | Q170: 0.01
A171: 170 | B171: 95640 | C171: 4782 | D171: 2391 | E171: 4781.482078 | F171: 0.06587668 | H171: 1000 | I171: 0.07 | J171: =ROUND(主表!E172*20*I171,0) -> 12386 | N171: 270 | O171: 12 | P171: 0.25 | Q171: 0.03
A172: 171 | B172: 97200 | C172: 4860 | D172: 2430 | E172: 4860.229119 | F172: 0.01646917 | H172: 1000 | I172: 0.07 | J172: =ROUND(主表!E173*20*I172,0) -> 12621 | N172: 280 | O172: 13 | P172: 0.26 | Q172: 0.01
A173: 172 | B173: 98800 | C173: 4940 | D173: 2470 | E173: 4940.273059 | F173: 0.01646917 | H173: 1000 | I173: 0.07 | J173: =ROUND(主表!E174*20*I173,0) -> 12863 | N173: 290 | O173: 14 | P173: =P174-Q174 -> 0.27 | Q173: 0.01
A174: 173 | B174: 100440 | C174: 5022 | D174: 2511 | E174: 5021.635256 | F174: 0.01646917 | H174: 1000 | I174: 0.07 | J174: =ROUND(主表!E175*20*I174,0) -> 13112 | N174: 300 | O174: 15 | P174: 0.3 | Q174: 0.03
A175: 174 | B175: 102080 | C175: 5104 | D175: 2552 | E175: 5104.337421 | F175: 0.01646917 | H175: 1000 | I175: 0.07 | J175: =ROUND(主表!E176*20*I175,0) -> 13362
A176: 175 | B176: 103760 | C176: 5188 | D176: 2594 | E176: 5188.401621 | F176: 0.01646917 | H176: 1000 | I176: 0.07 | J176: =ROUND(主表!E177*20*I176,0) -> 13619
A177: 176 | B177: 105480 | C177: 5274 | D177: 2637 | E177: 5273.85029 | F177: 0.01646917 | H177: 1000 | I177: 0.07 | J177: =ROUND(主表!E178*20*I177,0) -> 13881
A178: 177 | B178: 107200 | C178: 5360 | D178: 2680 | E178: 5360.706227 | F178: 0.01646917 | H178: 1000 | I178: 0.07 | J178: =ROUND(主表!E179*20*I178,0) -> 14146
A179: 178 | B179: 108960 | C179: 5448 | D179: 2724 | E179: 5448.992609 | F179: 0.01646917 | H179: 1000 | I179: 0.07 | J179: =ROUND(主表!E180*20*I179,0) -> 14416
A180: 179 | B180: 110760 | C180: 5538 | D180: 2769 | E180: 5538.732994 | F180: 0.01646917 | H180: 1000 | I180: 0.07 | J180: =ROUND(主表!E181*20*I180,0) -> 14693
A181: 180 | B181: 125360 | C181: 6268 | D181: 3134 | E181: 6268.479677 | F181: 0.13175336 | H181: 1000 | I181: 0.1 | J181: =ROUND(主表!E182*20*I181,0) -> 23818
A182: 181 | B182: 127440 | C182: 6372 | D182: 3186 | E182: 6371.716334 | F182: 0.01646917 | H182: 1000 | I182: 0.1 | J182: =ROUND(主表!E183*20*I182,0) -> 24278
A183: 182 | B183: 129520 | C183: 6476 | D183: 3238 | E183: 6476.653213 | F183: 0.01646917 | H183: 1000 | I183: 0.1 | J183: =ROUND(主表!E184*20*I183,0) -> 24738
A184: 183 | B184: 131680 | C184: 6584 | D184: 3292 | E184: 6583.318316 | F184: 0.01646917 | H184: 1000 | I184: 0.1 | J184: =ROUND(主表!E185*20*I184,0) -> 25216
A185: 184 | B185: 133840 | C185: 6692 | D185: 3346 | E185: 6691.740105 | F185: 0.01646917 | H185: 1000 | I185: 0.1 | J185: =ROUND(主表!E186*20*I185,0) -> 25698
A186: 185 | B186: 136040 | C186: 6802 | D186: 3401 | E186: 6801.94751 | F186: 0.01646917 | H186: 1000 | I186: 0.1 | J186: =ROUND(主表!E187*20*I186,0) -> 26188
A187: 186 | B187: 138280 | C187: 6914 | D187: 3457 | E187: 6913.96994 | F187: 0.01646917 | H187: 1000 | I187: 0.1 | J187: =ROUND(主表!E188*20*I187,0) -> 26688
A188: 187 | B188: 140560 | C188: 7028 | D188: 3514 | E188: 7027.837286 | F188: 0.01646917 | H188: 1000 | I188: 0.1 | J188: =ROUND(主表!E189*20*I188,0) -> 27198
A189: 188 | B189: 142880 | C189: 7144 | D189: 3572 | E189: 7143.579933 | F189: 0.01646917 | H189: 1000 | I189: 0.1 | J189: =ROUND(主表!E190*20*I189,0) -> 27718
A190: 189 | B190: 145240 | C190: 7262 | D190: 3631 | E190: 7261.228766 | F190: 0.01646917 | H190: 1000 | I190: 0.1 | J190: =ROUND(主表!E191*20*I190,0) -> 28250
A191: 190 | B191: 154800 | C191: 7740 | D191: 3870 | E191: 7739.574409 | F191: 0.06587668 | H191: 1000 | I191: 0.11 | J191: =ROUND(主表!E192*20*I191,0) -> 33205
A192: 191 | B192: 157360 | C192: 7868 | D192: 3934 | E192: 7867.038776 | F192: 0.01646917 | H192: 1000 | I192: 0.11 | J192: =ROUND(主表!E193*20*I192,0) -> 33840
A193: 192 | B193: 159920 | C193: 7996 | D193: 3998 | E193: 7996.602375 | F193: 0.01646917 | H193: 1000 | I193: 0.11 | J193: =ROUND(主表!E194*20*I193,0) -> 34478
A194: 193 | B194: 162560 | C194: 8128 | D194: 4064 | E194: 8128.299779 | F194: 0.01646917 | H194: 1000 | I194: 0.11 | J194: =ROUND(主表!E195*20*I194,0) -> 35138
A195: 194 | B195: =C195*20 -> 165240 | C195: =D195*2 -> 8262 | D195: =ROUND(MAX(D194+1,E195*M$1),0) -> 4131 | E195: 8262.16613 | F195: 0.01646917 | H195: 1000 | I195: 0.11 | J195: =ROUND(主表!E196*20*I195,0) -> 35807
A196: 195 | B196: 167960 | C196: 8398 | D196: 4199 | E196: =E195*(1+F196) -> 8398.237149 | F196: 0.01646917 | H196: 1000 | I196: 0.11 | J196: =ROUND(主表!E197*20*I196,0) -> 36489
A197: 196 | B197: 170720 | C197: 8536 | D197: 4268 | E197: 8536.549144 | F197: 0.01646917 | H197: 1000 | I197: 0.11 | J197: =ROUND(主表!E198*20*I197,0) -> 37182
A198: 197 | B198: 173560 | C198: 8678 | D198: 4339 | E198: 8677.139023 | F198: 0.01646917 | H198: 1000 | I198: 0.11 | J198: =ROUND(主表!E199*20*I198,0) -> 37897
A199: 198 | B199: 176400 | C199: 8820 | D199: 4410 | E199: 8820.044301 | F199: 0.01646917 | H199: 1000 | I199: 0.11 | J199: =ROUND(主表!E200*20*I199,0) -> 38614
A200: 199 | B200: 179320 | C200: 8966 | D200: 4483 | E200: 8965.30311 | F200: 0.01646917 | H200: 1000 | I200: 0.11 | J200: =ROUND(主表!E201*20*I200,0) -> 39351
... 101 more rows

Sheet 功法
A1: 等级 | B1: 需求修为等级 | C1: 标准强度 | D1: 被动加成 | E1: 1 | F1: 2
A2: 1 | B2: 1 | C2: =E1 -> 1 | D2: =D$61/60*A2 -> 0.03333333333
A3: 2 | B3: 5 | C3: =E$1+(F$1-E$1)*A2/59 -> 1.016949153 | D3: =D$61/60*A3 -> 0.06666666667
A4: 3 | B4: 10 | C4: =E$1+(F$1-E$1)*A3/59 -> 1.033898305 | D4: 0.1
A5: 4 | B5: 15 | C5: 1.050847458 | D5: 0.1333333333
A6: 5 | B6: 20 | C6: 1.06779661 | D6: 0.1666666667
A7: 6 | B7: 25 | C7: 1.084745763 | D7: 0.2
A8: 7 | B8: 30 | C8: 1.101694915 | D8: 0.2333333333
A9: 8 | B9: 35 | C9: 1.118644068 | D9: 0.2666666667
A10: 9 | B10: 40 | C10: 1.13559322 | D10: 0.3
A11: 10 | B11: 45 | C11: 1.152542373 | D11: 0.3333333333
A12: 11 | B12: 50 | C12: 1.169491525 | D12: 0.3666666667
A13: 12 | B13: 55 | C13: 1.186440678 | D13: 0.4
A14: 13 | B14: 60 | C14: 1.203389831 | D14: 0.4333333333
A15: 14 | B15: 65 | C15: 1.220338983 | D15: 0.4666666667
A16: 15 | B16: 70 | C16: 1.237288136 | D16: 0.5
A17: 16 | B17: 75 | C17: 1.254237288 | D17: 0.5333333333
A18: 17 | B18: 80 | C18: 1.271186441 | D18: 0.5666666667
A19: 18 | B19: 85 | C19: 1.288135593 | D19: 0.6
A20: 19 | B20: 90 | C20: 1.305084746 | D20: 0.6333333333
A21: 20 | B21: 95 | C21: 1.322033898 | D21: 0.6666666667
A22: 21 | B22: 100 | C22: 1.338983051 | D22: 0.7
A23: 22 | B23: 105 | C23: 1.355932203 | D23: 0.7333333333
A24: 23 | B24: 110 | C24: 1.372881356 | D24: 0.7666666667
A25: 24 | B25: 115 | C25: 1.389830508 | D25: 0.8
A26: 25 | B26: 120 | C26: 1.406779661 | D26: 0.8333333333
A27: 26 | B27: 125 | C27: 1.423728814 | D27: 0.8666666667
A28: 27 | B28: 130 | C28: 1.440677966 | D28: 0.9
A29: 28 | B29: 135 | C29: 1.457627119 | D29: 0.9333333333
A30: 29 | B30: 140 | C30: 1.474576271 | D30: 0.9666666667
A31: 30 | B31: 145 | C31: 1.491525424 | D31: 1
A32: 31 | B32: 150 | C32: 1.508474576 | D32: 1.033333333
A33: 32 | B33: 155 | C33: 1.525423729 | D33: 1.066666667
A34: 33 | B34: 160 | C34: 1.542372881 | D34: 1.1
A35: 34 | B35: 165 | C35: 1.559322034 | D35: 1.133333333
A36: 35 | B36: 170 | C36: 1.576271186 | D36: 1.166666667
A37: 36 | B37: 175 | C37: 1.593220339 | D37: 1.2
A38: 37 | B38: 180 | C38: 1.610169492 | D38: 1.233333333
A39: 38 | B39: 185 | C39: 1.627118644 | D39: 1.266666667
A40: 39 | B40: 190 | C40: 1.644067797 | D40: 1.3
A41: 40 | B41: 195 | C41: 1.661016949 | D41: 1.333333333
A42: 41 | B42: 200 | C42: 1.677966102 | D42: 1.366666667
A43: 42 | B43: 205 | C43: 1.694915254 | D43: 1.4
A44: 43 | B44: 210 | C44: 1.711864407 | D44: 1.433333333
A45: 44 | B45: 215 | C45: 1.728813559 | D45: 1.466666667
A46: 45 | B46: 220 | C46: 1.745762712 | D46: 1.5
A47: 46 | B47: 225 | C47: 1.762711864 | D47: 1.533333333
A48: 47 | B48: 230 | C48: 1.779661017 | D48: 1.566666667
A49: 48 | B49: 235 | C49: 1.796610169 | D49: 1.6
A50: 49 | B50: 240 | C50: 1.813559322 | D50: 1.633333333
A51: 50 | B51: 245 | C51: 1.830508475 | D51: 1.666666667
A52: 51 | B52: 250 | C52: 1.847457627 | D52: 1.7
A53: 52 | B53: 255 | C53: 1.86440678 | D53: 1.733333333
A54: 53 | B54: 260 | C54: 1.881355932 | D54: 1.766666667
A55: 54 | B55: 265 | C55: 1.898305085 | D55: 1.8
A56: 55 | B56: 270 | C56: 1.915254237 | D56: 1.833333333
A57: 56 | B57: 275 | C57: 1.93220339 | D57: 1.866666667
A58: 57 | B58: 280 | C58: 1.949152542 | D58: 1.9
A59: 58 | B59: 285 | C59: 1.966101695 | D59: 1.933333333
A60: 59 | B60: 290 | C60: 1.983050847 | D60: 1.966666667
A61: 60 | B61: 295 | C61: =F1 -> 2 | D61: 2
